Cogmind - Beta 15 @@@ ROGUE MODE // 2025.07.05 @ 10:00:01 Player: shockman27 Result: Destroyed by D-53 Grenadier with Mini Grenade Launcher Performance ------------- Evolutions (0) 0 Regions Visited (2) 400 Robots Destroyed (39) 195 Value Destroyed (613) 613 Prototype IDs (2) 40 Alien Tech Used (0) 0 Bonus (21) 21 TOTAL SCORE: 1269 Bonus ------- Follower Combat Kills 21 Cogmind --------- Core Integrity 0/250 Matter 240/300 Energy 213/280 System Corruption 0% Temperature Cool (0) Movement Treading (240) Ox1 Location -10/Mines Parts ------- > --- POWER (1) -------- Cooled Ion Engine > --- PROPULSION (2) --- Light Treads Light Treads > --- UTILITY (2) ------ Cooling System High-capacity Storage Unit > --- WEAPON (2) ------- Medium Laser Particle Gun > --- INVENTORY (20) --- Cooled Ion Engine Light Treads Wheel Wheel Wheel Hover Unit Hover Unit Hover Unit High-capacity Matter Pod (200) Faulty Experimental Sensor Array Seismic Detector Seismic Detector Improved Targeting Computer ECM Suite Medium Laser Light Assault Rifle Shotgun Shotgun Mining Laser Mining Claw Peak State ------------ > --- POWER ------------ Cooled Ion Engine > --- PROPULSION ------- Wheel Wheel > --- UTILITY ---------- High-capacity Storage Unit Experimental Sensor Array > --- WEAPON ----------- Shotgun Shotgun > --- INVENTORY -------- Cooled Ion Engine Light Treads Light Treads Light Treads Wheel Hover Unit Hover Unit Hover Unit Cooling System High-capacity Matter Pod Seismic Detector Seismic Detector Improved Targeting Computer ECM Suite Medium Laser Medium Laser Particle Gun Light Assault Rifle Mining Laser Mining Claw [Rating: 21] Favorites ----------- Power Cooled Ion Engine Engine Cooled Ion Engine Propulsion Wheel Treads Light Treads Wheel Wheel Utility Seismic Detector Device Seismic Detector Storage High-capacity Storage Unit Weapon Medium Laser Energy Gun Medium Laser Ballistic Gun Shotgun Special Weapon Mining Laser Build | -11 -10 -10 ------- Run | Yrd Mat Min Slots Evolved . | . . . Power . | . . . Propulsion . | . . . Utility . | . . . Weapon . | . . . Parts Attached 26 | 8 12 6 Power 4 | 1 3 . Engine 4 | 1 3 . Core . | . . . Reactor . | . . . Propulsion 7 | 2 3 2 Treads 3 | 2 . 1 Leg . | . . . Wheel 4 | . 3 1 Hover . | . . . Flight . | . . . Utility 8 | 2 4 2 Device 5 | 1 2 2 Storage 3 | 1 2 . Processor . | . . . Hackware . | . . . Protection . | . . . Artifact . | . . . Weapon 7 | 3 2 2 Energy Gun 3 | 2 . 1 Energy Cannon . | . . . Ballistic Gun 3 | 1 2 . Ballistic Cannon . | . . . Launcher . | . . . Special Weapon 1 | . . 1 Impact Weapon . | . . . Slashing Weapon . | . . . Piercing Weapon . | . . . Special Melee Weapon . | . . . Unidentified Prototypes 2 | . 1 1 Parts Lost . | . . . Power . | . . . Propulsion . | . . . Utility . | . . . Weapon . | . . . Highest Loss Streak . | . . . To Critical Strikes . | . . . Average Backups 14 | 4 14 20 Power . | . 1 1 Propulsion 4 | 2 4 7 Utility 3 | . 3 5 Weapon 5 | 1 5 6 Tool/Special . | . . . Unused Backups 15 | . 3 12 Power 2 | . 1 1 Propulsion 5 | . 1 4 Utility 4 | . 1 3 Weapon 4 | . . 4 Tool/Special . | . . . Average Slot Usage (%) 100 | . 100 100 Engine 14 | . 14 14 Treads 8 | . 10 2 Wheel 19 | . 17 25 Device 14 | . 14 14 Storage 14 | . 14 14 Energy Gun 14 | . 18 . Ballistic Gun 12 | . 9 25 Peak Build Rating 21 | 7 13 21 Average Rating 10 | 6 10 13 On Entrance 6 | . 7 13 Naked Turns . | . . . Heaviest Build 55 | 15 55 55 Greatest Support 40 | 40 40 40 Greatest Overweight (x) 4 | 4 2 2 Average Overweight (x) 1 | . 1 1 Largest Inventory Capacity 20 | 8 20 20 Average Capacity 17 | 7 18 20 Most Carried 20 | 8 20 20 Average Carried 14 | 5 14 19 Final Capacity 20 | 8 20 20 Final Carried 20 | 8 20 20 Class Distribution -------------------- 100% | Mutant Dominant Class ---------------- Mutant | -10/Materials Mutant | -10/Mines Resources | -11 -10 -10 ----------- Run | Yrd Mat Min Matter Collected 1021 | 331 518 172 Remotely . | . . . Salvage Created 1376 | 155 963 258 Parts 73 | 11 44 18 Haulers Intercepted 2 | . 2 . Recyclers Shooed 1 | . 1 . Parts Field Recycled . | . . . Retrieved Matter . | . . . Parts Self-Destructed . | . . . Prevented . | . . . Kills | -11 -10 -10 ------- Run | Yrd Mat Min Combat Hostiles Destroyed 17 | . 15 2 Guns 17 | . 15 2 Classes Destroyed 9 | 3 6 . Worker 3 | 1 . 2 Tunneler 7 | 4 2 1 Hauler 2 | . 2 . Recycler 6 | 1 3 2 Mechanic 1 | . 1 . Operator 1 | . 1 . Watcher 2 | . 2 . Swarmer 6 | . 6 . Grunt 11 | . 9 2 Best Kill Streak 6 | 2 6 2 Combat Bots Only 5 | . 5 2 Max Kills in Single Turn 1 | 1 1 1 Gunslinging . | . . . Exploded . | . . . Melee . | . . . Uniques/NPCs Destroyed . | . . . Combat | -11 -10 -10 -------- Run | Yrd Mat Min Hostile Shots Fired 90 | . 68 22 Missed 22 | . 20 2 Hits 68 | . 48 20 Projectile 68 | . 48 20 AOE 10 | . . 10 Damage Taken 1007 | . 503 504 Core 264 | . 129 135 Absorbed by Shields . | . . . Regen/Repaired (Parts) 90 | . 90 . Core Remaining (%) 100 | 100 . . Volleys Fired 118 | 14 87 17 Largest 2 | 2 2 2 Hottest 100 | 100 100 100 Shots Fired 228 | 28 170 30 Gun 224 | 28 170 26 Cannon . | . . . Launcher . | . . . Special 4 | . . 4 Kinetic 70 | . 44 26 Thermal 158 | 28 126 4 Explosive . | . . . Electromagnetic . | . . . Robot Hit Streak 12 | 5 12 7 Robot Miss Streak 6 | 2 6 2 Penetration Max . | . . . Secondary Targets 1 | . 1 . Max Gunslinging Chain 1 | . 1 . Shots Hit Robots 134 | 16 100 18 Core Hits 62 | 7 43 12 Critical Kills . | . . . Critical Parts Destroyed . | . . . Critical Strikes 12 | 2 10 . Burn 12 | 2 10 . Melee Attacks . | . . . Impact . | . . . Slashing . | . . . Piercing . | . . . Sneak Attacks . | . . . Combat Hostiles . | . . . Follow-up Attacks . | . . . Damage Inflicted 1742 | 201 1268 273 Guns 1742 | 201 1268 273 Cannons . | . . . Explosions . | . . . Melee . | . . . Ramming . | . . . Kinetic 530 | . 257 273 Thermal 1212 | 201 1011 . Explosive . | . . . Electromagnetic . | . . . Impact . | . . . Slashing . | . . . Piercing . | . . . Highest Corruption . | . . . Average Corruption . | . . . Corruption Purged . | . . . Corruption Blocked . | . . . Overload Shots . | . . . Overflow Damage . | . . . Projectiles . | . . . Explosions . | . . . Melee . | . . . Knockbacks . | . . . Impact . | . . . Kinetic . | . . . Secondary . | . . . Self-Inflicted Damage . | . . . Shots . | . . . Rammed . | . . . Targets Rammed . | . . . Kicked . | . . . Crushed . | . . . Highest Temperature 354 | 156 354 48 Average Temperature 84 | 53 96 21 Received Heat Transfer 276 | . 201 75 Siege Activations . | . . . Martial Activations . | . . . Shielding Activations . | . . . Robots Disrupted . | . . . Combat Hostiles . | . . . Robots Corrupted . | . . . Combat Hostiles . | . . . Parts Fried . | . . . Impact Corruptions . | . . . Robots Melted . | . . . Combat Hostiles . | . . . Parts Melted 9 | 2 7 . Heat Transferred 4477 | 740 3737 . Parts Sabotaged . | . . . Parts Stolen . | . . . Parts Stripped . | . . . Power Chain Reactions . | . . . Alert | -11 -10 -10 ------- Run | Yrd Mat Min Maximum Alert Level . | . . . Low Security (%) 100 | 100 100 100 Level 1 . | . . . Level 2 . | . . . Level 3 . | . . . Level 4 . | . . . Level 5 . | . . . High Security . | . . . Max Security . | . . . Peak Influence 112 | 5 112 71 Initial 6 | . . 6 Average 25 | 1 31 14 Influence Increases 673 | 30 454 189 Destroy 0b10 Robot/C 400 | . 300 100 Destroy 0b10 Robot/NC 110 | 30 55 25 Destroy Leader 88 | . 68 20 Allied During Kill 11 | . . 11 Destroy Structure 4 | . 1 3 Lose Combat Pursuer 60 | . 30 30 Influence Decreases 673 | 30 436 207 Entered New Map 12 | . . 12 Time Decay 601 | 30 436 135 Lost Ally 60 | . . 60 Squads Dispatched 3 | . 3 . Investigation 2 | . 2 . Extermination . | . . . Reinforcement 1 | . 1 . Assault . | . . . Garrison . | . . . Intercept . | . . . Searches Triggered . | . . . Construction Impeded . | . . . Haulers Reinforced . | . . . Active Scanning Responses . | . . . Cargo Convoy Interrupts . | . . . Stealth | -11 -10 -10 --------- Run | Yrd Mat Min Distress Signals 1 | . 1 . Communications Jammed . | . . . Distress Signals . | . . . Times Spotted 45 | . 35 10 Peak Tracking Total 5 | . 5 3 Tactical Retreats 2 | . 1 1 Traps | -11 -10 -10 ------- Run | Yrd Mat Min Traps Triggered 2 | . 2 . Indirectly . | . . . Trap Hack Attempts . | . . . Triggered . | . . . Disarmed . | . . . Reprogrammed . | . . . Reused . | . . . Traps Extracted . | . . . Installed . | . . . Triggered . | . . . Machines | -11 -10 -10 ---------- Run | Yrd Mat Min Machines Disabled . | . . . Max in Single Turn . | . . . Machines Repaired . | . . . Machines Dismantled . | . . . Machines Sabotaged . | . . . Overloaded Fab Kills . | . . . Hacking | -11 -10 -10 --------- Run | Yrd Mat Min Machines Accessed 5 | . 5 . Terminals 4 | . 4 . Fabricators . | . . . Repair Stations 1 | . 1 . Recycling Units . | . . . Scanalyzers . | . . . Garrison Access . | . . . Total Hacks 18 | . 18 . Successful 8 | . 8 . Failed 9 | . 9 . Catastrophic 2 | . 2 . Database Lockouts 1 | . 1 . Manual 12 | . 12 . Terminals 12 | . 12 . Fabricators . | . . . Repair Stations 6 | . 6 . Recycling Units . | . . . Scanalyzers . | . . . Garrison Access . | . . . Terminal Hacks 1 | . 1 . Robot Analysis 1 | . 1 . Fabricator Hacks . | . . . Repair Station Hacks 4 | . 4 . Scan Component 2 | . 2 . Repair 2 | . 2 . Recycling Unit Hacks . | . . . Scanalyzer . | . . . Garrison Access Hacks . | . . . Unauthorized Hacks 3 | . 3 . Terminals 3 | . 3 . Botnet 2 | . 2 . Operators 1 | . 1 . Fabricators . | . . . Repair Stations . | . . . Recycling Units . | . . . Scanalyzers . | . . . Garrison Access . | . . . Data Cores Recovered . | . . . Used . | . . . Hacking Detections 5 | . 5 . Full Trace Events 1 | . 1 . Feedback Events . | . . . Feedback Blocked . | . . . Robot Schematics Acquired . | . . . Robots Built . | . . . Authchips . | . . . Time . | . . . Total Robot Build Rating . | . . . Part Schematics Acquired . | . . . Parts Built . | . . . Authchips . | . . . Time . | . . . Total Part Build Rating . | . . . Parts Repaired 2 | . 2 . Time 52 | . 52 . Parts Recycled . | . . . Recycled Matter . | . . . Retrieved Matter . | . . . Retrieved Components . | . . . Parts Scanalyzed . | . . . Part Schematics Acquired . | . . . Parts Damaged . | . . . Bothacking | -11 -10 -10 ------------ Run | Yrd Mat Min Used RIF Installer . | . . . Robots Hacked . | . . . Non-combat . | . . . Combat . | . . . Robot Hacks Applied . | . . . Relay Couplers Released . | . . . Fabnet Peak Effective % . | . . . Robots Rewired . | . . . Allies Hacked . | . . . Hacks Repelled . | . . . Allies | -11 -10 -10 -------- Run | Yrd Mat Min Total Allies 3 | . . 3 Largest Group 3 | . . 3 Highest-Rated Group 40 | . . 40 Highest-Rated Ally 16 | . . 16 Total Orders . | . . . Ally Attacks 14 | . . 14 Total Damage 127 | . . 127 Kills 3 | . . 3 Allies Corrupted . | . . . Allies Melted . | . . . Intel | -11 -10 -10 ------- Run | Yrd Mat Min Active Infowar (turns) 2221 | 106 1641 474 Seismic 2221 | 106 1641 474 Robot Analysis Total 1 | . 1 . Derelict Logs Recovered 1 | . . 1 Drone Launches . | . . . Drone Recoveries . | . . . Exploration | -11 -10 -10 ------------- Run | Yrd Mat Min Turns Passed 2486 | 239 1758 489 Spaces Moved 1463 | 100 1022 341 Core 12 | 12 . . Treads 336 | 88 241 7 Legs . | . . . Wheels 1115 | . 781 334 Hover . | . . . Flight . | . . . Fastest Speed 50 | 50 110 110 Average Speed 123 | 161 123 112 Slowest Speed 250 | 250 240 240 Overloaded Moves . | . . . Propulsion Burnouts . | . . . Robots Hopped . | . . . Potential Cave-ins . | . . . Cave-ins Triggered . | . . . Exploration Rate (%) 55 | 7 93 66 Regions Visited 2 Branch Regions 1 Pre-discovered Areas . | . . . Known Exits Taken . | . . . Unknown Exits Taken 2 | 1 1 . Scrap Searched 1 | . . 1 Spaces Dug 4 | . . 4 Terrain Destroyed 4 | . . 4 Melee . | . . . Projectile 4 | . . 4 AOE . | . . . Terrain Rammed . | . . . Walls Destroyed . | . . . Machines Disabled . | . . . Actions | -11 -10 -10 --------- Run | Yrd Mat Min Total 1896 | 145 1347 404 Wait 230 | 16 186 28 Move 1461 | 99 1021 341 Hop . | . . . Pick Up 30 | 8 19 3 Fast Attach 7 | 7 . . Attach . | . . . Detach . | . . . Swap 37 | 1 24 12 Drop 13 | . 10 3 Fire 118 | 14 87 17 Melee . | . . . Ram . | . . . Kick . | . . . Crush . | . . . Escape Stasis . | . . . Rewire . | . . . Trap . | . . . Miscellaneous . | . . . Route ------- -11/Scrapyard -10/Materials (discovered 5 exits: [*Mat x2] / [*Min x2] / [*Sub]) -10/Mines (discovered 1 exit: [*Mat]) History --------- Turn | Location | Event 28 | -11/Scrapyard | Discovered new exit (range 16) 240 | -11/Scrapyard | Entered Materials 273 | -10/Materials | Discovered new exit (range 16) 327 | -10/Materials | Build established: Mutant 602 | -10/Materials | Discovered new exit (range 14) 1120 | -10/Materials | Central database locked down 1134 | -10/Materials | Discovered new exit (range 9) 1549 | -10/Materials | Discovered new exit (range 15) 1784 | -10/Materials | Discovered new exit (range 8) 1887 | -10/Materials | Core integrity fell below 50% 1958 | -10/Materials | Repaired Med. Laser 1985 | -10/Materials | Repaired Med. Laser 1998 | -10/Materials | Entered Mines 2054 | -10/Mines | Discovered new exit (range 16) 2150 | -10/Mines | Assisted by bots powering up and referring to "LRC-V3" 2224 | -10/Mines | Found a damaged Exp. Sensor Array with a note attached 2227 | -10/Mines | Found Prototype Device 2242 | -10/Mines | Identified Exp. Sensor Array 2310 | -10/Mines | Assembled infested the area 2317 | -10/Mines | Learned 2 Materials zone layouts 2362 | -10/Mines | Lost 3 allies 2482 | -10/Mines | Core integrity fell below 20% 2487 | -10/Mines | Destroyed by D-53 Grenadier with Mini Grenade Launcher Last Messages --------------- top of us... With this we can! Deliver it to Megawrench for repairs then we'll never be afraid of an ambush while sneaking around Materials again, ha." 02226_ Dropped Lgt. Assault Rifle. 02227_ Acquired Prototype Device. 02242_ Identified Exp. Sensor Array. 02242_ Faulty integration triggers energy drain (-200). 02243_ Acquired 10 matter. 02277_ K-01 Serf destroyed. 02280_ Acquired 18 matter. 02293_ S-10 Pest destroyed. 02295_ Destroyed Flight Unit. 02296_ S-10 Pest destroyed. 02310_ ALERT: Infestation in the mines, dispatching Demolisher response squad. 02317_ Acquired derelict log, extracted data. Data stored: Materials zone layouts (x2). 02321_ Trooper 1b destroyed. 02331_ Mercenary 1a destroyed. 02486_ The unstable cave ceiling collapses. Map ----- +----------------------------------------------------+ | | | | | | | | | ??????????????????????????????????????? | | ??????????????????????????????????????? | | ??????????????????????????????????????? | | ??????????????????????????????????????? | | ??????????????????????????????????????? | | ??????????????????????????????????????? | | ??????????????????????????????????????? | | ??????????????####????????????????????? | | ?????????????## ##???????????????????? | | ????????????## #???????????????????? | | ???????????##" #???????????????????? | | ???????????# " ##??????????????????? | | ???????????##"# ####???????????????? | | ????????????### ##??????????????? | | ?????????????# #??????????????? | | ?????????????# ##?????????????? | | ????????????# """" #####?????????? | | ???????????# """" ##????????? | | #???????????# """" ##???????? | | #????????????## #####???? | | ??????????????## d #???? | | ???????????????# @ d #???? | | ???????????????# ## #???? | | ???????????????## # ## #???? | | ????????????????### # ### #???? | | ??????????????????##### # #???? | | ??# ????????????????#### # #???? | | #??????############ #???? | | #???????# #???? | | #????????# #??? | | #????????# ######## #??? | | ##????????# #??????##### #??? | | ? ##?????????# #??????????## #?? | | ???????#?????# #???????????## #?? | | ??????? ?????# #????????????# ##?? | | ??????? ?????# #????????????## ##??? | | ??????# #????# #????????????## ##???? | | ??????# #???? #????????????? #????? | | ??????# #???# #???????????? #????? | | ??????# #???# #???????????? #????? | | ??????# #???# % #??????????? ????? | | ??????# #???# #????????????????? | | ?????# #????????????????? | | ###### [ ##????????????????? | | =%! % # # ##?????????????????? | | ###### %[ ##### #??????????????????? | +----------------------------------------------------+ Best States ------------- Heat Dissipation 47 Energy Generation 14 Energy Capacity 280 Matter Stores 300 Matter Capacity 300 Sight Range 16 Terrain Scan Density 10 Evasion (%) 40 Recoil Reduction 2 Item Schematics ----------------- None Robot Schematics ------------------ None Fabricated ------------ Nothing Repaired ---------- Med. Laser | 32% | -10/Materials Med. Laser | 38% | -10/Materials Alien Tech Used ----------------- None Achievements -------------- None Challenges ------------ None Game ------ Seed DamperBehemothDetector Manual? 0 Play Time 00:20:36 Cumulative 141.1 hours Start 2025.06.29 @ 09:41:40 End 2025.07.05 @ 10:00:01 Sessions 6 Manual Loads 0 Difficulty Rogue Special Mode None Game No. 75 Rogue 71 Adventurer 4 Explorer 0 Win Type - Total 3 Types 2/0/0/1/0/0/0/0/0/0 Lore% 64 Gallery% 56 Achievement% 47 Wizard Run 0 Options --------- Layout 0 ASCII 0 Keyboard 1 Movement Vi Keybinds 0 Fullscreen 1 Font 24/Crisp Map View 76x50 Zoom Use 6% Tactical HUD 1 Map Filters NONE Filters NONE Steam 1 RUN: 570233cc-8803-4574-8511-22f91590367e